lending/lending_fUSD_20240124
["ID","MTS","AMOUNT","RATE_DAILY","PERIOD"]
[312609009,1706079040765,-2319.904,0.00022975,2]
[312609010,1706079040775,-150.47,0.00022975,2]
[312609011,1706079040785,-291.093,0.00022975,2]
[312609012,1706079040795,-1069.902,0.00022975,2]
[312609013,1706079040807,-150.436,0.00022975,2]
[312609014,1706079040818,-150.202,0.00022975,2]
[312609015,1706079040829,-222.055,0.00022975,2]
[312609016,1706079040841,-150.0,0.00022984,2]
[312609017,1706079040854,-150.0,0.00022989,2]
[312609018,1706079040864,-150.0,0.00022992,2]
[312609019,1706079040875,-2118.52996055,0.00022996,3]
[312609020,1706079040886,-3798.6361802,0.00022996,2]
[312609021,1706079040896,-221.00974885,0.00022996,2]
[312609022,1706079040905,-1256.24889353,0.00022997,2]
[312609023,1706079040915,-2036.4507574,0.00022997,2]
[312609024,1706079040925,-166.43145901,0.00022997,2]
[312609025,1706079040934,-1312.84936448,0.00022997,2]
[312609026,1706079040944,-289.23191357,0.00022997,2]
[312609027,1706079040954,-197.96097831,0.00022997,2]
[312609028,1706079040965,-3752.94529763,0.00022997,2]
[312609029,1706079040974,-16223.17120691,0.00022997,2]
[312609030,1706079040986,-2168.1719327,0.00022997,2]
[312609031,1706079041022,-261.908,0.00022997,2]
[312609032,1706079041057,-602.25347184,0.00022997,2]
[312609033,1706079041071,-400.0,0.00022997,2]
[312609034,1706079041088,-306.09729367,0.00022997,2]
[312609035,1706079041100,-613.46221154,0.00022997,2]
[312609036,1706079041113,-28061.58138313,0.00022997,2]
[312609037,1706079041122,-1442.1042752,0.00022998,2]
[312609038,1706079041132,-152.87266226,0.00022998,2]
[312609039,1706079041142,-1727.10016326,0.00022998,2]
[312609040,1706079041153,-20640.62326436,0.00022998,2]
[312609041,1706079041163,-151.0124,0.00022998,3]
[312609042,1706079041174,-126009.94337724,0.00022999,2]
[312609043,1706079041184,-325.50391609,0.00022999,10]
[312609044,1706079041195,-15582.72523084,0.00022999,2]
[312609045,1706079041206,-200.0,0.00022999,2]
[312609046,1706079041216,-2000.0,0.00022999,2]
[312609047,1706079041227,-150.56104699,0.00022999,2]
[312609048,1706079041237,-150.56104699,0.00022999,2]
[312609049,1706079041248,-150.0,0.00022999,2]
[312609050,1706079041258,-150.0,0.00022999,2]
[312609051,1706079041269,-1006.40286812,0.00023,2]
[312609052,1706079041279,-77886.60110254,0.00023,2]
[312609059,1706079042589,-13413.36644342,0.00023,2]
[312609060,1706079042824,-11424.67310568,0.00023,2]
[312609061,1706079042836,-1830.39466394,0.00023,2]
[312609079,1706079045687,-1209.83504088,0.00023,2]
[312609080,1706079045745,-264.2879492,0.00023,2]
[312609081,1706079045820,-1064.10511605,0.00023,2]
[312609083,1706079131463,-952.7005,0.0002255,2]
[312609084,1706079131486,-174.49949303,0.00022699,2]
[312609085,1706079131509,-6068.47180341,0.000227,2]
[312609086,1706079131534,-150.0,0.00022732,2]
[312609087,1706079131557,-150.0,0.00022733,2]
[312609088,1706079131580,-150.0,0.00022736,2]
[312609089,1706079131603,-150.0,0.00022744,2]
[312609090,1706079131625,-150.0,0.00022744,2]
[312609091,1706079131650,-150.0,0.00022769,2]
[312609092,1706079131672,-2376.20732368,0.0002277,2]
[312609093,1706079131695,-168.51110187,0.00022776,2]
[312609094,1706079131719,-150.0,0.00022779,2]
[312609095,1706079131741,-150.0,0.0002278,2]
[312609096,1706079131764,-150.0,0.00022783,2]
[312609097,1706079131787,-150.0,0.00022785,2]
[312609098,1706079131808,-150.0,0.00022786,2]
[312609099,1706079131835,-150.0,0.00022799,2]
[312609100,1706079131858,-150.0,0.00022814,2]
[312609101,1706079131880,-1527.03208749,0.00022816,2]
[312609102,1706079131903,-150.0,0.00022832,2]
[312609103,1706079131926,-150.0,0.00022839,2]
[312609104,1706079131947,-1298.6,0.0002284,2]
[312609105,1706079131972,-150.0,0.00022856,2]
[312609106,1706079131992,-150.0,0.00022857,2]
[312609107,1706079132016,-150.0,0.00022878,2]
[312609108,1706079132038,-150.0,0.0002288,2]
[312609109,1706079132061,-150.0,0.00022882,2]
[312609110,1706079132083,-150.0,0.00022889,2]
[312609111,1706079132104,-150.0,0.00022899,2]
[312609112,1706079132125,-1013.97769052,0.000229,2]
[312609115,1706079360762,391.51,0.00020006,2]
[312609117,1706079776285,371.93,0.00019831,2]
[312609118,1706079994917,250.0,0.00020955,2]
[312609119,1706079996195,2317.45,0.00020955,2]
[312609120,1706080000590,200.0,0.00020998,2]
[312609167,1706080232225,-12.32746858,0.0002101,2]
[312609169,1706080232239,-142.70253142,0.0002101,2]
[312609171,1706080232248,-150.0,0.00021011,2]
[312609173,1706080232258,-39.36668177,0.00021023,2]
[312609176,1706080232270,-371.17331823,0.00021023,2]
[312609178,1706080232279,-107.39033453,0.00021036,2]
[312609181,1706080232302,-319.48278176,0.00021036,2]
[312609183,1706080232314,-521.96688371,0.00021036,2]
[312609185,1706080232323,-138.83843429,0.00021567,2]
[312609188,1706080232334,-1570.80156571,0.00021567,2]
[312609190,1706080232343,-157.1624297,0.0002158,2]
[312609218,1706080232597,-22.13636839,0.0002158,2]
[312609230,1706080232702,-20.70120191,0.0002158,2]
[312609232,1706080232712,-337.39029427,0.00021582,2]
[312609239,1706080232768,-17923.10423926,0.00021582,2]
[312609242,1706080232790,-763.17194654,0.00021582,2]
[312609244,1706080232800,-548.44539613,0.00021583,2]
[312609453,1706080238214,-2185.27223241,0.00021583,2]
[312609455,1706080238225,-347.655,0.00021583,2]
[312609456,1706080238374,-679.21665167,0.00021583,2]
[312609457,1706080238386,-8390.59993927,0.00021583,2]
[312609458,1706080238398,-868.71140911,0.00021583,2]
[312609459,1706080238436,-10870.09937141,0.00021583,2]
[312609460,1706080238445,-210.96730951,0.0002166,2]
[312609461,1706080238455,-435.46,0.00021693,2]
[312609462,1706080238465,-1732.3,0.00021712,2]
[312609463,1706080238474,-210.96730943,0.00021725,2]
[312609464,1706080238483,-210.96730943,0.00021791,2]
[312609465,1706080238493,-157.89,0.00021795,2]
[312609466,1706080238502,-210.96730943,0.00021856,2]
[312609467,1706080238512,-168.66,0.00021916,2]
[312609468,1706080238521,-2500.0,0.00021918,3]
[312609469,1706080238530,-250.0,0.00021918,2]
[312609470,1706080238544,-210.96730943,0.00021921,2]
[312609471,1706080238554,-210.96730943,0.00021986,2]
[312609472,1706080238564,-250.0,0.00022,2]
[312609473,1706080238572,-157.89,0.00022023,2]
[312609474,1706080238581,-210.96730943,0.00022052,2]
[312609475,1706080238590,-155.03,0.00022061,2]
[312609476,1706080238600,-189.3059,0.00022087,2]
[312609477,1706080238609,-476.9941,0.00022087,2]
[312609478,1706080238618,-371.93,0.00022095,2]
[312609479,1706080238627,-210.96730943,0.00022117,2]
[312609480,1706080238637,-210.96730943,0.00022182,2]
[312609481,1706080238646,-458.68667897,0.00022186,2]
[312609482,1706080238655,-52678.58825314,0.00022187,2]
[312609483,1706080238679,-59564.9948406,0.00022187,2]
[312609484,1706080238706,-311.21120683,0.00022187,2]
[312609485,1706080238718,-425.435,0.00022187,2]
[312609498,1706080240151,-394.81,0.00021199,2]
[312609499,1706080240161,-58870.71817559,0.00022187,2]
[312609500,1706080240170,-210.96730943,0.00022247,2]
[312609501,1706080240179,-157.89,0.0002225,2]
[312609502,1706080240189,-250.0,0.00022274,2]
[312609503,1706080240203,-210.96730943,0.00022313,2]
[312609504,1706080240212,-210.96730943,0.00022378,2]
[312609505,1706080240221,-210.96730943,0.00022443,2]
[312609506,1706080240230,-157.89,0.00022477,2]
[312609507,1706080240240,-210.96730943,0.00022508,2]
[312609508,1706080240249,-250.0,0.00022548,2]
[312609509,1706080240258,-210.96730943,0.00022574,2]
[312609510,1706080240268,-2317.45,0.00022599,2]
[312609511,1706080240278,-210.96730943,0.00022639,2]
[312609512,1706080240287,-1329.61551478,0.00022702,2]
[312609513,1706080240296,-157.89,0.00022704,2]
[312609514,1706080240305,-210.96730943,0.00022704,2]
[312609515,1706080240314,-150.0,0.00022729,2]
[312609516,1706080240323,-210.96730943,0.00022769,2]
[312609517,1706080240333,-547.0,0.0002277,2]
[312609518,1706080240341,-150.0,0.00022771,2]
[312609519,1706080240351,-2909.0,0.00022775,2]
[312609520,1706080240360,-7365.0,0.00022775,2]
[312609521,1706080240369,-8110.0,0.00022775,2]
[312609522,1706080240378,-896.954,0.00022775,2]
[312609523,1706080240387,-154.552,0.00022775,2]
[312609524,1706080240396,-19732.0,0.00022775,2]
[312609525,1706080240406,-2276.0,0.00022775,2]
[312609526,1706080240415,-1031.0,0.00022775,2]
[312609527,1706080240424,-150.0,0.00022787,2]
[312609528,1706080240433,-341.6147,0.00022791,2]
[312609529,1706080240443,-1732.3,0.00022798,2]
[312609530,1706080240455,-364.83727315,0.00022798,2]
[312609531,1706080240464,-322.37692674,0.00022799,2]
[312609532,1706080240473,-150.0,0.000228,2]
[312609533,1706080240483,-57476.60368505,0.000228,2]
[312609534,1706080240497,-1196.35888034,0.000228,2]
[312609535,1706080240513,-948.83827011,0.000228,2]
[312609536,1706080240532,-27090.7468645,0.000228,2]
[312609537,1706080240549,-150.0,0.00022802,2]
[312609538,1706080240558,-150.0,0.00022803,2]
[312609539,1706080240568,-203.922279,0.00022816,2]
[312609540,1706080240578,-150.0,0.00022816,2]
[312609541,1706080240587,-500.0,0.00022816,2]
[312609542,1706080240596,-800.0,0.00022816,2]
[312609543,1706080240607,-200.0,0.00022816,2]
[312609544,1706080240616,-150.0,0.00022824,2]
[312609545,1706080240625,-150.0,0.00022828,2]
[312609546,1706080240635,-210.96730943,0.00022835,2]
[312609547,1706080240645,-150.0,0.00022836,2]
[312609548,1706080240654,-150.0,0.00022839,2]
[312609549,1706080240663,-150.0,0.00022843,2]
[312609550,1706080240673,-150.0,0.00022845,2]
[312609551,1706080240684,-150.0,0.00022851,2]
[312609552,1706080240693,-150.0,0.00022855,2]
[312609553,1706080240703,-150.0,0.00022861,2]
[312609554,1706080240712,-160.17457819,0.00022863,2]
[312609555,1706080240722,-150.0,0.00022869,2]
[312609556,1706080240731,-150.0,0.00022869,2]
[312609557,1706080240740,-150.0,0.00022874,2]
[312609558,1706080240749,-1165.264,0.00022875,2]
[312609559,1706080240760,-25315.989,0.0002288,2]
[312609560,1706080240769,-150.0,0.00022881,2]
[312609561,1706080240779,-150.0,0.00022886,2]
[312609562,1706080240788,-150.0,0.00022888,2]
[312609563,1706080240797,-1500.0,0.00022891,2]
[312609564,1706080240806,-151.85011353,0.000229,2]
[312609565,1706080240816,-5000.0,0.000229,2]
[312609566,1706080240826,-4088.28537634,0.000229,2]
[312609567,1706080240835,-210.96730943,0.000229,2]
[312609568,1706080240844,-167.21031147,0.000229,2]
[312609569,1706080240853,-270.55329892,0.000229,2]
[312609570,1706080240862,-150.0,0.00022907,2]
[312609571,1706080240871,-150.0,0.00022911,2]
[312609572,1706080240880,-150.0,0.00022915,2]
[312609573,1706080240889,-150.0,0.00022916,2]
[312609574,1706080240899,-150.0,0.00022925,2]
[312609575,1706080240908,-150.0,0.00022927,2]
[312609576,1706080240917,-150.0,0.0002293,2]
[312609577,1706080240927,-150.0,0.0002293,2]
[312609578,1706080240936,-157.89,0.00022931,2]
[312609579,1706080240946,-150.0,0.00022944,2]
[312609580,1706080240955,-150.0,0.00022946,2]
[312609581,1706080240964,-150.0,0.00022949,2]
[312609582,1706080240973,-150.0,0.00022954,2]
[312609583,1706080240982,-150.0,0.00022963,2]
[312609584,1706080240991,-150.0,0.00022965,2]
[312609586,1706080241000,-150.0,0.00022968,2]
[312609588,1706080241009,-150.0,0.00022972,2]
[312609590,1706080241018,-315.038,0.00022975,2]
[312609592,1706080241028,-1360.0,0.00022975,2]
[312609593,1706080241038,-583.297,0.00022975,2]
[312609594,1706080241047,-1857.0,0.00022975,2]
[312609595,1706080241057,-450.0,0.00022975,2]
[312609596,1706080241068,-382.52,0.00022975,2]
[312609597,1706080241078,-947.0,0.00022975,2]
[312609598,1706080241087,-837.0,0.00022975,2]
[312609599,1706080241096,-1251.0,0.00022975,2]
[312609600,1706080241106,-303.275,0.00022975,2]
[312609601,1706080241116,-215.0,0.00022975,2]
[312609602,1706080241126,-1233.0,0.00022975,2]
[312609603,1706080241135,-998.0,0.00022975,2]
[312609604,1706080241145,-427.0,0.00022975,2]
[312609605,1706080241155,-1936.0,0.00022975,2]
[312609606,1706080241164,-595.0,0.00022975,2]
[312609607,1706080241173,-236.0,0.00022975,2]
[312609608,1706080241182,-154.475,0.00022975,2]
[312609609,1706080241192,-509.0,0.00022975,2]
[312609610,1706080241206,-319.0,0.00022975,2]
[312609611,1706080241216,-867.0,0.00022975,2]
[312609612,1706080241225,-150.0,0.00022976,2]
[312609613,1706080241234,-150.0,0.00022979,2]
[312609614,1706080241245,-3298.6765351,0.0002298,2]
[312609615,1706080241254,-150.0,0.00022986,2]
[312609616,1706080241263,-150.0,0.00022988,2]
[312609617,1706080241274,-150.0,0.00022988,2]
[312609618,1706080241284,-1813.68084069,0.00022998,2]
[312609619,1706080241294,-265.75241527,0.00022998,2]
[312609620,1706080241304,-502.99418805,0.00022998,2]
[312609621,1706080241314,-2013.34068841,0.00022998,2]
[312609622,1706080241323,-1286.258,0.00022998,2]
[312609623,1706080241334,-1136.22308606,0.00022998,2]
[312609624,1706080241343,-1164.70350675,0.00022998,2]
[312609625,1706080241353,-1013.26547405,0.00022998,2]
[312609626,1706080241363,-216.61314252,0.00022999,2]
[312609627,1706080241372,-2975.047092,0.00022999,4]
[312609628,1706080241382,-824.69868954,0.00022999,2]
[312609629,1706080241392,-150.0,0.00022999,2]
[312609630,1706080241401,-150.0,0.00022999,2]
[312609631,1706080241410,-150.0,0.00022999,2]
[312609632,1706080241419,-150.0,0.00022999,2]
[312609633,1706080241429,-252649.40160182,0.00023,2]
[312609660,1706080242751,-380.0000097,0.00021798,2]
[312609689,1706080245891,-184.5399903,0.00021798,2]
[312609690,1706080245901,-525.21163417,0.00023,2]
[312609691,1706080245912,-49064.74957899,0.00023,2]
[312609692,1706080245935,-10256.93218859,0.00023,2]
[312609695,1706080246271,-1198.76757,0.00023,2]
[312609696,1706080246283,-1828.92486917,0.00023,2]
[312609697,1706080246311,-1701.3480908,0.00023,2]
[312609698,1706080308956,387.1,0.00020467,2]
[312609710,1706081037840,367.74,0.00019862,2]
[312609711,1706081041372,3332.1719293,0.0003,120]
[312610017,1706081437865,-200.0,0.00021718,2]
[312610019,1706081437875,-451.64,0.00021724,2]
[312610020,1706081437885,-150.0,0.00021775,2]
[312610021,1706081437894,-293.78,0.00021776,2]
[312610022,1706081437903,-1795.75880614,0.00021776,2]
[312610023,1706081437915,-1085.41820824,0.00021776,2]
[312610024,1706081437963,-327.90158654,0.00021776,2]
[312610025,1706081437975,-638.24848553,0.00021776,2]
[312610026,1706081437988,-680.31421281,0.00021776,2]
[312610027,1706081438004,-783.45476951,0.00021776,2]
[312610028,1706081438361,-6255.2304,0.00021776,2]
[312610029,1706081438381,-8016.07738084,0.00021776,2]
[312610030,1706081438393,-1803.17615039,0.00021776,2]
[312610031,1706081438403,-54.48524177,0.00021779,2]
[312610032,1706081438507,-1945.51475823,0.00021779,2]
[312610033,1706081438516,-548.36,0.00021786,2]
[312610035,1706081438525,-155.03,0.0002179,2]
[312610036,1706081438535,-1674.25,0.00021809,2]
[312610037,1706081438545,-1143.2,0.00021871,2]
[312610039,1706081438555,-250.0,0.00021918,2]
[312610041,1706081438564,-2500.0,0.00021918,3]
[312610043,1706081438574,-250.0,0.00022,2]
[312610044,1706081438585,-26273.6471,0.00022087,2]
[312610045,1706081438594,-150.99,0.00022087,2]
[312610046,1706081438603,-367.74,0.00022126,2]
[312610047,1706081438613,-208.0,0.00022128,2]
[312610048,1706081438623,-250.0,0.00022274,2]
[312610049,1706081438632,-590.25388509,0.00022548,3]
[312610051,1706081438642,-465.24189115,0.00022548,2]
[312610053,1706081438653,-1500.0,0.00022733,2]
[312610055,1706081438667,-150.0,0.00022745,2]
[312610057,1706081438676,-150.0,0.00022784,2]
[312610060,1706081438686,-51.07914879,0.00022788,2]
[312610064,1706081438719,-98.92085121,0.00022788,2]
[312610066,1706081438728,-333.08643879,0.00022816,2]
[312610209,1706081440400,-166.91356121,0.00022816,2]
[312610210,1706081440410,-104.419548,0.00022816,2]
[312610230,1706081443043,-95.580452,0.00022816,2]
[312610231,1706081443053,-800.0,0.00022816,2]
[312610232,1706081443062,-500.0,0.00022816,2]
[312610233,1706081443072,-200.0,0.00022816,2]
[312610234,1706081443082,-150.0,0.00022859,2]
[312610235,1706081443091,-150.0,0.00022863,2]
[312610236,1706081443101,-1500.0,0.00022878,2]
[312610237,1706081443111,-150.0,0.00022889,2]
[312610238,1706081443122,-391.3311,0.000229,2]
[312610239,1706081443132,-5000.0,0.000229,2]
[312610240,1706081443144,-151.9228407,0.000229,2]
[312610241,1706081443154,-3747.59492822,0.000229,2]
[312610242,1706081443163,-1163.41357545,0.000229,2]
[312610243,1706081443173,-549.55143969,0.000229,6]
[312610244,1706081443182,-1279.41786186,0.000229,2]
[312610245,1706081443191,-812.7754651,0.000229,2]
[312610246,1706081443200,-1143.2,0.00022964,2]
[312610247,1706081443209,-161.92870866,0.00022974,2]
[312610248,1706081443218,-426.0,0.00022975,2]
[312610249,1706081443229,-235.0,0.00022975,2]
[312610250,1706081443239,-595.0,0.00022975,2]
[312610251,1706081443249,-998.0,0.00022975,2]
[312610252,1706081443260,-1936.0,0.00022975,2]
[312610253,1706081443270,-867.0,0.00022975,2]
[312610254,1706081443280,-319.0,0.00022975,2]
[312610255,1706081443290,-509.0,0.00022975,2]
[312610257,1706081443563,-150.0,0.00022975,2]
[312610258,1706081443578,-8110.0,0.00022975,2]
[312610259,1706081443587,-5575.0,0.00022975,2]
[312610260,1706081443597,-1360.0,0.00022975,2]
[312610261,1706081443606,-2459.797,0.00022975,2]
[312610262,1706081443616,-7365.0,0.00022975,2]
[312610263,1706081443625,-460.039,0.00022975,2]
[312610264,1706081443645,-19804.419,0.00022975,2]
[312610265,1706081443658,-4173.0,0.00022975,2]
[312610266,1706081443668,-2282.792,0.00022975,2]
[312610267,1706081443678,-2909.0,0.00022975,2]
[312610268,1706081443687,-330.888,0.00022975,2]
[312610269,1706081443697,-837.0,0.00022975,2]
[312610270,1706081443707,-1857.0,0.00022975,2]
[312610271,1706081443717,-947.0,0.00022975,2]
[312610272,1706081443726,-305.876,0.00022975,2]
[312610273,1706081443736,-222.055,0.00022975,2]
[312610274,1706081443745,-1032.255,0.00022975,2]
[312610275,1706081443755,-708.587,0.00022975,2]
[312610276,1706081443765,-181.71064084,0.0002299,2]
[312610277,1706081443775,-1436.42670771,0.00022998,3]
[312610278,1706081443785,-471.32400001,0.00022998,2]
[312610279,1706081443795,-333.27834163,0.00022998,2]
[312610280,1706081443805,-1606.80443646,0.00022998,4]
[312610281,1706081443815,-5794.63731753,0.00022998,2]
[312610282,1706081443824,-151.0124,0.00022998,3]
[312610283,1706081443834,-151.0124,0.00022998,3]
[312610284,1706081443843,-150.0,0.00022998,2]
[312610285,1706081443853,-276.2299599,0.00022998,2]
[312610286,1706081443863,-223.16656548,0.00022999,2]
[312610287,1706081443872,-618.52401716,0.00022999,2]
[312610288,1706081443882,-6003.81762164,0.00022999,2]
[312610289,1706081443892,-1610.37447621,0.00022999,2]
[312610290,1706081443902,-150.72940828,0.00022999,2]
[312610292,1706081443911,-150.0,0.00022999,2]
[312610294,1706081443921,-150.0,0.00022999,2]
[312610295,1706081443931,-150.0,0.00022999,2]
[312610296,1706081443940,-150.0,0.00022999,2]
[312610297,1706081443950,-885.1227073,0.00023,3]
[312610298,1706081443959,-159719.98806229,0.00023,7]
[312610299,1706081443973,-804.42564,0.00023,7]
[312610300,1706081443995,-2425.43770215,0.00023,7]
[312610301,1706081444007,-804.29,0.00023,7]
[312610302,1706081444023,-1032.3953998,0.00023,7]
[312610303,1706081444423,-563.36498808,0.00023,7]
[312610309,1706081446167,-377.34566948,0.000229,2]
[312610310,1706081446178,-1108.87164166,0.00023,7]
[312610315,1706081446379,-654.57000082,0.00023,7]
[312610413,1706081500885,370.97,0.0002056,2]
[312610414,1706081579639,3002.4043,0.00021818,90]
[312610416,1706081883984,208.0,0.00020128,2]
[312610426,1706081944662,352.42,0.00019625,2]
[312610430,1706082215723,-2623.23288806,0.00021108,2]
[312610431,1706082215745,-1576.76711194,0.00021304,2]
[312610437,1706082633804,-341.78195328,0.00021303,2]
[312610438,1706082633816,-425.80547056,0.00021303,2]
[312610439,1706082633826,-423.23288806,0.00021304,2]
[312610440,1706082633836,-30.72262196,0.00021319,2]
[312610441,1706082633849,-119.27737804,0.00021319,2]
[312610442,1706082633859,-155.03,0.00021323,2]
[312610443,1706082633868,-150.0,0.00021342,2]
[312610444,1706082633879,-135.40510028,0.00021366,2]
[312610445,1706082633891,-502.47489972,0.00021366,2]
[312610446,1706082633901,-623.6220966,0.00021366,2]
[312610447,1706082633940,-832.48880502,0.00021366,2]
[312610448,1706082633979,-5257.68909838,0.00021366,2]
[312610449,1706082633989,-26.90763687,0.00021366,2]
[312610450,1706082634002,-270.98804803,0.00021366,2]
[312610451,1706082634016,-63.4243151,0.00021366,2]
[312610452,1706082634028,-482.63717707,0.00021366,2]
[312610453,1706082634039,-431.18512968,0.00021366,2]
[312610454,1706082634051,-299.99,0.00021366,2]
[312610458,1706082634082,-502.88675972,0.00021366,2]
[312610868,1706082638115,-988.30093353,0.00021366,2]
[312610870,1706082638124,-200.0,0.00021366,2]
[312610872,1706082638133,-1272.86608823,0.0002141,2]
[312610888,1706082638277,-3355.883,0.0002141,2]
[312610890,1706082638289,-454.87408036,0.0002141,2]
[312610893,1706082638308,-1004.35538629,0.0002141,2]
[312610898,1706082638340,-6237.00356573,0.0002141,2]
[312610903,1706082638378,-646.0808026,0.0002141,2]
[312610905,1706082638389,-10908.93707679,0.0002141,2]
[312610907,1706082638398,-293.46,0.00021439,2]
[312610909,1706082638408,-200.0,0.00021442,2]
[312610911,1706082638417,-1852.42,0.00021499,2]
[312610913,1706082638427,-780.26,0.00021522,2]
[312610915,1706082638435,-250.0,0.00021541,2]
[312610917,1706082638445,-1579.22,0.00021541,2]
[312610919,1706082638454,-150.0,0.00021571,2]
[312610921,1706082638463,-187.15,0.00021644,2]
[312610923,1706082638472,-552.13,0.00021667,2]
[312610925,1706082638481,-171.72,0.00021695,2]
[312610927,1706082638490,-638.68,0.00021886,2]
[312610929,1706082638499,-352.42,0.00021889,2]
[312610931,1706082638509,-2500.0,0.00021918,3]
[312610933,1706082638519,-472.94,0.00021918,2]
[312610935,1706082638527,-224.08,0.00021924,2]
[312610937,1706082638537,-171.72,0.00021978,2]
[312610939,1706082638547,-2783.81299809,0.00022,2]
[312610941,1706082638556,-302.94,0.00022178,2]
[312610943,1706082638565,-171.72,0.0002226,2]
[312610945,1706082638574,-187.15,0.00022445,2]
[312610947,1706082638583,-171.72,0.00022543,2]
[312610949,1706082638593,-183.04572122,0.00022598,3]
[312610951,1706082638602,-780.26,0.00022598,2]
[312610954,1706082638615,-150.0,0.00022662,2]
[312610956,1706082638624,-1232.3636,0.000228,2]
[312610958,1706082638634,-500.0,0.00022816,2]
[312610960,1706082638643,-800.0,0.00022816,2]
[312610962,1706082638652,-200.0,0.00022816,2]
[312610964,1706082638661,-171.72,0.00022826,2]
[312610966,1706082638670,-2648.32495509,0.00022898,2]
[312610968,1706082638680,-1272.43737758,0.00022898,2]
[312610970,1706082638689,-855.6615917,0.00022898,2]
[312610971,1706082638699,-294.52952462,0.00022898,2]
[312610972,1706082638709,-155.29854543,0.00022898,2]
[312610973,1706082638719,-241.24156393,0.00022898,2]
[312610974,1706082638730,-273.12549116,0.00022898,2]
[312610975,1706082638739,-3190.67771766,0.00022899,2]
[312610976,1706082638748,-1052.9466411,0.00022899,2]
[312610977,1706082638757,-306.97180835,0.00022899,2]
[312610978,1706082638767,-299.5784,0.000229,2]
[312610979,1706082638776,-6472.99049396,0.000229,2]
[312610980,1706082638790,-731.0,0.000229,2]
[312610983,1706082638813,-52395.36320604,0.000229,2]
[312610985,1706082638822,-8184.58812653,0.000229,2]
[312611061,1706082640519,-735.5491766,0.000229,2]
[312611062,1706082641318,-266.02249793,0.000229,2]
[312611065,1706082641357,-45012.02769894,0.000229,2]
[312611068,1706082641367,-479.83212837,0.000229,2]
[312611070,1706082641377,-5000.0,0.000229,2]
[312611072,1706082641387,-1017.98687851,0.000229,2]
[312611074,1706082641397,-553.2163886,0.000229,6]
[312611076,1706082641406,-151.92284055,0.000229,2]
[312611078,1706082641415,-3435.29535096,0.000229,2]
[312611080,1706082641425,-164.49811442,0.00022975,3]
[312611081,1706082641434,-1360.0,0.00022975,2]
[312611084,1706082641444,-837.0,0.00022975,2]
[312611086,1706082641454,-947.0,0.00022975,2]
[312611088,1706082641463,-1857.0,0.00022975,2]
[312611090,1706082641473,-1233.0,0.00022975,2]
[312611092,1706082641482,-1251.0,0.00022975,2]
[312611093,1706082641492,-215.0,0.00022975,2]
[312611095,1706082641501,-162.616,0.00022975,2]
[312611098,1706082641511,-1936.0,0.00022975,2]
[312611100,1706082641521,-515.776,0.00022975,2]
[312611102,1706082641530,-508.0,0.00022975,2]
[312611104,1706082641539,-5447.565,0.00022975,2]
[312611106,1706082641548,-2389.431,0.00022975,2]
[312611108,1706082641558,-2276.0,0.00022975,2]
[312611110,1706082641567,-2909.0,0.00022975,2]
[312611112,1706082641577,-320.93418675,0.00022998,2]
[312611114,1706082641586,-156.11859892,0.00022998,2]
[312611116,1706082641595,-151.0124,0.00022998,3]
[312611118,1706082641605,-151.0124,0.00022998,3]
[312611120,1706082641614,-151.0124,0.00022998,3]
[312611122,1706082641624,-3609.546437,0.00022999,2]
[312611124,1706082641634,-1387.96118204,0.00022999,2]
[312611126,1706082641644,-463.89301287,0.00022999,2]
[312611128,1706082641653,-150.0,0.00022999,2]